bitfinex-derivatives/quotes_SOLF0:USTF0_20251108
["timestamp","ask_amount","ask_price","bid_price","bid_amount"]
[1762563571262,10.03465717,161.16,161.1,2.93]
[1762563571478,7.35585717,161.15,161.1,2.93]
[1762563571673,2.91,161.13,161.1,2.93]
[1762563571976,4.44585717,161.14,161.11,2.96990119]
[1762563571977,0.04358589,161.14,161.11,2.96990119]
[1762563572174,0.04358589,161.14,161.13,2.89]
[1762563572375,4.44701343,161.19,161.13,2.89]
[1762563572573,4.44701343,161.18,161.15,2.89]
[1762563572873,8.4974,161.2,161.15,2.89]
[1762563573079,2.91,161.2,161.14,5.5891]
[1762563573378,3.1,161.08,160.96,2.89]
[1762563573681,3.1,161.08,161.0,0.00047166]
[1762563573682,8.6939,161.02,161.0,0.00047166]
[1762563573878,3.1,161.0,160.9,7.4062447]
[1762563574081,3.1,160.98,160.89,2.89]
[1762563574379,13.24481813,160.97,160.89,2.89]
[1762563574572,4.54941813,160.96,160.89,2.89]
[1762563574773,8.6954,160.97,160.89,2.89]
[1762563574974,0.04769384,160.94,160.92,2.89]
[1762563575174,0.04769384,160.94,160.91,0.04017641]
[1762563575369,0.04769384,160.94,160.91,2.93017641]
[1762563578181,0.04769384,160.94,160.91,0.04017641]
[1762563578682,3.14769384,160.94,160.91,0.04017641]
[1762563579480,0.04769384,160.94,160.91,2.93017641]
[1762563582085,0.04769384,160.94,160.91,8.52727641]
[1762563582287,0.04769384,160.94,160.92,3.1]
[1762563583986,7.52861391,161.04,160.94,3.1]
[1762563584188,3.01,161.04,160.94,3.1]
[1762563584782,8.6031,161.04,160.95,5.5956]
[1762563584989,0.04372272,160.98,160.96,3.1]
[1762563585187,0.04776821,160.99,160.96,3.1]
[1762563585387,0.04776821,160.99,160.96,3.14564748]
[1762563585688,3.01,160.87,160.78,3.1]
[1762563586793,0.03936143,160.84,160.81,3.14083027]
[1762563588187,0.03936143,160.84,160.81,0.04083027]
[1762563592694,3.04936143,160.84,160.81,0.04083027]
[1762563593302,3.01,160.82,160.81,0.04083027]
[1762563595089,8.6107,160.82,160.73,8.7035]
[1762563595294,3.01,160.81,160.73,8.7035]
[1762563595796,8.611,160.81,160.73,8.7035]
[1762563596195,0.04551074,160.79,160.73,8.7035]
[1762563597599,0.04551074,160.79,160.74,3.1]
[1762563597802,3.01,160.85,160.74,3.1]
[1762563597803,0.04125908,160.78,160.74,3.1]
[1762563599110,0.04125908,160.78,160.77,3.1]
[1762563599312,0.04419523,160.79,160.77,3.1]
[1762563599612,0.04128583,160.8,160.77,3.1]
[1762563599906,0.04128583,160.8,160.79,8.7013]
[1762563600108,0.04128324,160.81,160.8,3.1]
[1762563600405,0.04129219,160.82,160.81,5.6008]
[1762563600604,0.03993854,160.83,160.72,18.57]
[1762563600807,0.04263207,160.79,160.77,3.1]
[1762563601005,0.04547943,160.8,160.77,3.1]
[1762563602004,0.04547943,160.8,160.79,3.1]
[1762563603512,5.5985,160.88,160.81,8.5606]
[1762563603711,2.99,160.87,160.81,2.96]
[1762563603913,2.99,160.85,160.81,2.96]
[1762563604411,7.37449902,160.92,160.81,2.96]
[1762563604713,0.04560011,160.85,160.81,2.96]
[1762563604905,0.04560011,160.85,160.81,3.0040412]
[1762563606213,3.03560011,160.85,160.81,3.0040412]
[1762563606406,3.03560011,160.85,160.81,0.0440412]
[1762563606602,0.04560011,160.85,160.81,3.0040412]
[1762563607011,5.64520011,160.85,160.81,3.0040412]
[1762563607213,0.04560011,160.85,160.81,3.0040412]
[1762563607405,7.37449902,160.97,160.81,3.0040412]
[1762563607406,2.99,160.93,160.81,3.0040412]
[1762563607609,2.99,160.93,160.81,2.96]
[1762563607910,2.99,160.93,160.76,25.94449902]
[1762563607911,5.5975,160.91,160.84,2.96]
[1762563608510,3.03008438,160.89,160.86,0.04090603]
[1762563608716,0.04424658,160.89,160.86,3.00492734]
[1762563611314,5.64244658,160.89,160.86,3.00492734]
[1762563611906,5.64244658,160.89,160.86,0.04492734]
[1762563611907,8.5886,160.88,160.86,0.04492734]
[1762563612116,2.99,160.87,160.86,0.04492734]
[1762563612715,2.99,160.87,160.79,2.96]
[1762563613714,0.04635348,160.85,160.81,3.00005771]
[1762563614625,5.5999,160.84,160.81,3.00005771]
[1762563615422,0.04635348,160.85,160.84,2.96]
[1762563615617,2.99,160.93,160.84,2.96]
[1762563616126,2.99,160.93,160.86,2.96]
[1762563616516,8.62740977,160.91,160.88,0.04707719]
[1762563617813,0.04000977,160.91,160.88,3.00707719]
[1762563618421,0.04000977,160.91,160.88,0.04707719]
[1762563618818,3.03000977,160.91,160.88,0.04707719]
[1762563619417,2.99,160.89,160.88,0.04707719]
[1762563619623,2.99,160.89,160.78,2.96]
[1762563620019,8.5888,160.87,160.78,2.96]
[1762563620212,8.5888,160.87,160.82,2.96]
[1762563620718,0.04640636,160.86,160.83,3.00198428]
[1762563621114,0.04640636,160.86,160.85,2.96]
[1762563621322,2.99,160.94,160.85,2.96]
[1762563621517,2.99,160.98,160.85,2.96]
[1762563621726,2.99,160.98,160.89,2.96]
[1762563622313,0.04746308,160.95,160.92,0.04346575]
[1762563622523,2.99,160.94,160.92,0.03994078]
[1762563623123,8.5864,160.94,160.92,0.03994078]
[1762563623432,2.99,160.93,160.92,0.03994078]
[1762563625025,3.03435731,160.95,160.92,0.03994078]
[1762563625530,8.63035731,160.95,160.92,0.03994078]
[1762563625828,3.03435731,160.95,160.92,0.03994078]
[1762563627822,8.63045731,160.95,160.92,0.03994078]
[1762563628833,2.99,160.94,160.92,0.03994078]
[1762563629524,0.04435731,160.95,160.92,0.03994078]
[1762563630023,0.04435731,160.95,160.93,2.96]
[1762563630421,0.04435731,160.95,160.93,8.5565]
[1762563631220,0.04435731,160.95,160.94,2.96]
[1762563631725,82.57,161.04,160.96,2.96]
[1762563631926,5.5938,161.02,160.96,2.96]
[1762563632132,2.99,161.04,160.97,2.96]
[1762563632330,8.5829,161.04,160.97,2.96]
[1762563632530,0.04644301,161.02,160.99,0.04141417]
[1762563634624,3.10644301,161.02,160.99,0.04141417]
[1762563634826,3.06,161.01,160.99,0.04141417]
[1762563635424,8.654,161.01,160.99,0.04141417]
[1762563635728,3.06,161.0,160.92,2.87]
[1762563636135,3.06,160.97,160.88,2.87]
[1762563636830,0.04019285,160.94,160.91,0.04160486]
[1762563637225,0.04019285,160.94,160.91,2.91160486]
[1762563637626,3.06,161.02,160.93,2.87]
[1762563638233,5.594,161.01,160.95,5.5959]
[1762563638526,3.06,161.02,160.95,5.5959]
[1762563638732,4.39739163,161.07,160.96,0.04770668]
[1762563638733,3.0998847,161.0,160.96,0.04770668]
[1762563638938,3.06,160.97,160.96,0.04475291]
[1762563640326,3.06,160.99,160.96,0.04475291]
[1762563640924,0.0398847,161.0,160.96,2.91475291]
[1762563642036,0.0398847,161.0,160.97,5.595]
[1762563642640,3.1798847,161.0,160.96,0.04475291]
[1762563643229,8.7351,160.98,160.96,0.04475291]
[1762563643429,3.14,160.97,160.96,0.04475291]
[1762563645439,3.14,160.95,160.88,8.7382]
[1762563645632,3.14,160.95,160.88,3.14]
[1762563646233,3.14,161.02,160.9,3.14]
[1762563646434,3.14,161.02,160.85,11.1982]
[1762563646435,0.03986928,160.98,160.94,3.1815364]
[1762563646629,3.17986928,160.98,160.94,0.0415364]
[1762563647134,3.17986928,160.98,160.94,3.1815364]
[1762563647135,0.03986928,160.98,160.94,3.1815364]
[1762563647332,3.17986928,160.98,160.94,3.1815364]
[1762563647538,3.17986928,160.98,160.94,0.0415364]
[1762563648544,3.14,160.96,160.94,0.0415364]
[1762563649934,8.7358,160.96,160.94,0.0415364]
[1762563650445,3.14,160.95,160.94,0.0415364]
[1762563651233,3.14,160.95,160.86,3.14]
[1762563651735,3.14,160.99,160.86,3.14]
[1762563652138,3.14,160.99,160.87,3.14]
[1762563652337,0.04472249,160.95,160.91,0.0403922]
[1762563652541,0.04472249,160.95,160.92,3.14]
[1762563653942,0.04472249,160.95,160.93,8.7365]
[1762563655540,0.04472249,160.95,160.94,3.14]
[1762563655839,3.14,161.03,160.96,5.5956]
[1762563656045,3.14,161.03,160.96,8.7356]
[1762563656343,3.14,161.03,160.97,5.595]
[1762563656740,0.04402592,161.02,160.98,3.18684701]
[1762563656938,0.04402592,161.02,161.0,3.14]
[1762563657541,3.18402592,161.02,160.98,3.18684701]
[1762563657941,3.18402592,161.02,160.98,0.04684701]
[1762563660446,3.18402592,161.02,160.98,3.18684701]
[1762563661638,3.18402592,161.02,160.98,0.04684701]
[1762563662245,0.04402592,161.02,161.0,3.0]
[1762563663039,0.04402592,161.02,160.98,0.04684701]
[1762563663040,3.06402592,161.02,160.98,0.04684701]
[1762563664146,3.02,161.01,160.98,0.04684701]
[1762563665045,3.02,160.99,160.98,0.04684701]
[1762563665247,3.02,160.99,160.9,3.0]
[1762563665646,3.02,160.96,160.9,3.0]
[1762563666238,3.06256496,160.95,160.91,0.04546895]
[1762563666745,3.06256496,160.95,160.91,3.04546895]
[1762563666946,3.06256496,160.95,160.91,0.04546895]
[1762563667251,0.04256496,160.95,160.91,3.04546895]
[1762563667440,3.06256496,160.95,160.91,0.04546895]
[1762563667843,3.06256496,160.95,160.91,3.04546895]
[1762563668442,0.04256496,160.95,160.91,3.04546895]
[1762563668846,0.04256496,160.95,160.94,3.0]
[1762563671052,8.613,161.04,160.95,3.0]
[1762563671647,5.5932,161.03,160.96,8.5953]
[1762563671853,3.02,161.02,160.96,8.5953]
[1762563672054,3.06719951,161.01,160.97,0.04347064]
[1762563672254,3.06719951,161.01,160.97,0.04350273]
[1762563672954,3.06719951,161.01,160.87,23.20188859]
[1762563672955,18.67,160.96,160.75,15.40571475]
[1762563673158,4.53188859,160.89,160.7,4.53188859]
[1762563673452,3.02,160.85,160.75,5.6027]
[1762563673650,3.02,160.83,160.7,4.53188859]
[1762563673852,0.04735194,160.78,160.75,0.04699444]
[1762563676253,0.04735194,160.78,160.75,5.64959444]
[1762563678558,5.6953634,160.92,160.83,5.6001]
[1762563678859,15.21983431,161.05,160.83,5.6001]
[1762563678860,4.53188859,161.17,160.92,87.0604]
[1762563679054,4.53188859,161.17,161.0,3.0]
[1762563679253,79.56,161.23,161.0,3.0]
[1762563679254,5.61233194,161.2,161.0,3.0]
[1762563679658,0.04576014,161.12,161.08,0.04044911]
[1762563679855,0.04576014,161.12,161.08,0.04781868]
[1762563679856,0.04571827,161.12,161.08,0.04781868]
[1762563680661,3.02,161.11,161.08,0.04781868]
[1762563683152,0.04571827,161.12,161.08,0.04781868]
[1762563684058,0.04571827,161.12,161.08,5.63891868]
[1762563684757,0.04571827,161.12,161.09,7.76259002]
[1762563684952,0.04571827,161.12,161.08,5.63891868]
[1762563685157,0.04571827,161.12,161.09,7.76259002]
[1762563685360,0.04571827,161.12,161.08,5.63891868]
[1762563685855,0.04571827,161.12,161.1,5.5906]
[1762563686056,0.04571827,161.12,161.1,8.5906]
[1762563686558,3.02,161.19,161.11,10.76147754]
[1762563686765,3.02,161.19,161.12,7.76147754]
[1762563686963,3.02,161.19,161.13,7.76147754]
[1762563687165,3.02,161.19,161.16,5.5886]
[1762563687565,3.06151083,161.19,161.16,5.62814]
[1762563687766,0.04151083,161.19,161.16,5.62814]
[1762563688068,3.06151083,161.19,161.16,5.62814]
[1762563688266,0.04151083,161.19,161.16,5.62814]
[1762563688563,0.04151083,161.19,161.17,3.0]
[1762563688756,0.04151083,161.19,161.16,0.03954]
[1762563688757,0.04151083,161.19,161.18,8.588]
[1762563690365,3.02,161.28,161.2,5.5872]
[1762563690561,3.02,161.28,161.18,3.0]
[1762563691565,3.06072379,161.25,161.21,0.0448835]
[1762563691764,3.06072379,161.25,161.21,0.04541215]
[1762563696064,0.04072379,161.25,161.21,3.19541215]
[1762563696466,0.04072379,161.25,161.23,5.586]
[1762563696770,0.04072379,161.25,161.24,3.15]
[1762563697070,0.04072379,161.25,161.21,0.04541215]
[1762563698067,4.53188859,161.36,161.21,0.04541215]
[1762563698068,2.87,161.43,161.31,3.15]
[1762563698370,2.87,161.43,161.33,3.15]
[1762563698573,2.87,161.43,161.34,5.5824]
[1762563698964,2.87,161.43,161.37,0.04008926]
[1762563699271,2.91708765,161.4,161.37,0.04008926]
[1762563699574,2.91708765,161.4,161.37,3.19008926]
[1762563699575,0.04708765,161.4,161.37,3.19008926]
[1762563699873,79.44,161.58,161.37,3.19008926]
[1762563699874,2.87,161.49,161.37,3.19008926]
[1762563700185,86.6637,161.67,161.41,3.15]
[1762563700186,2.87,161.53,161.41,3.15]
[1762563700975,0.04260207,161.49,161.45,0.04303833]
[1762563701166,0.04260207,161.49,161.46,3.15]
[1762563701567,0.04260207,161.49,161.45,0.04303833]
[1762563702078,2.95260207,161.49,161.45,0.04303833]
[1762563706378,0.04260207,161.49,161.45,0.04303833]
[1762563708080,0.04260207,161.49,161.45,5.62133833]
[1762563709074,2.95260207,161.49,161.45,0.04303833]
[1762563710684,0.04260207,161.49,161.45,3.11303833]
[1762563710975,0.04260207,161.49,161.47,8.6476]
[1762563711183,0.04260207,161.49,161.47,5.5776]
[1762563711483,2.95260207,161.49,161.47,5.5776]
[1762563712688,2.95260207,161.49,161.45,0.04303833]
[1762563714990,0.04260207,161.49,161.45,3.11303833]
[1762563715177,0.04260207,161.49,161.48,3.07]
[1762563717788,2.91,161.57,161.5,3.07]
[1762563718186,2.91,161.61,161.5,3.07]
[1762563718387,2.91,161.61,161.55,5.575]
[1762563718792,0.0434387,161.6,161.56,0.04413115]
[1762563718994,2.91,161.59,161.56,0.04413115]
[1762563720293,2.91,161.59,161.56,5.61873115]
[1762563721793,0.0434387,161.6,161.56,0.04413115]
[1762563721992,2.9534387,161.6,161.56,0.04413115]
[1762563723093,0.0434387,161.6,161.56,2.92413115]
[1762563723297,0.0434387,161.6,161.59,2.88]
[1762563723997,3.12,161.68,161.62,5.5727]
[1762563724392,3.12,161.68,161.61,5.5729]
[1762563724995,3.16301802,161.66,161.63,0.04363659]
[1762563725605,0.04301802,161.66,161.63,0.04363659]
[1762563725798,3.16301802,161.66,161.63,0.04363659]
[1762563726101,3.12,161.65,161.63,0.04363659]
[1762563728206,0.04301802,161.66,161.63,0.04363659]
[1762563728594,0.04301802,161.66,161.63,2.92363659]
[1762563728997,0.04301802,161.66,161.64,5.5719]
[1762563729192,0.04301802,161.66,161.64,8.4519]
[1762563729409,173.0618,161.92,161.63,0.04363659]
[1762563729410,3.12,161.73,161.65,2.88]
[1762563729612,3.12,161.73,161.68,5.5705]
[1762563730407,3.16708494,161.72,161.69,0.04502345]
[1762563730713,3.16243562,161.72,161.69,0.0442277]
[1762563731510,3.16243562,161.72,161.69,5.6144277]
[1762563731806,3.16243562,161.72,161.69,0.0442277]
[1762563739515,3.12,161.71,161.69,0.0442277]
[1762563740513,0.04243562,161.72,161.69,0.0442277]
[1762563741210,0.04243562,161.72,161.7,5.5699]
[1762563742719,0.04243562,161.72,161.7,8.4499]
[1762563743023,0.04243562,161.72,161.7,5.5699]
[1762563743917,0.04243562,161.72,161.69,0.0442277]
[1762563744111,3.16243562,161.72,161.69,0.0442277]
[1762563744316,8.73183562,161.72,161.69,0.0442277]
[1762563744516,3.12,161.71,161.63,2.88]
[1762563744915,3.12,161.7,161.63,8.4523]
[1762563745115,3.12,161.7,161.63,5.5723]
[1762563745317,3.12,161.7,161.59,2.88]
[1762563745825,3.12,161.65,161.63,0.04428135]
[1762563746022,3.12,161.65,161.62,0.04008678]
[1762563746226,3.160126,161.65,161.62,0.04081407]
[1762563747628,3.12,161.63,161.51,2.88]
[1762563747926,5.5733,161.61,161.53,5.5758]
[1762563748112,3.12,161.63,161.53,5.5758]
[1762563748317,3.12,161.63,161.51,2.88]
[1762563748721,0.040722,161.59,161.56,2.88]
[1762563749117,0.040722,161.59,161.55,0.04638634]
[1762563749427,0.040722,161.59,161.55,2.92638634]
[1762563750722,0.040722,161.59,161.57,5.5742]
[1762563751527,0.040722,161.59,161.58,2.88]
[1762563753325,3.12,161.67,161.59,3.13]
[1762563754423,0.04293937,161.65,161.61,0.04154163]
[1762563754825,2.93293937,161.65,161.61,0.04154163]
[1762563755523,2.89,161.64,161.61,0.04154163]
[1762563757728,2.89,161.62,161.51,3.13]
[1762563758231,8.4629,161.62,161.53,5.5757]
[1762563758533,2.89,161.61,161.51,3.13]
[1762563758729,0.04200317,161.58,161.54,3.17110338]
[1762563759033,2.93200317,161.58,161.54,0.04110338]
[1762563760031,2.89,161.56,161.54,0.04110338]
[1762563760229,2.93200317,161.58,161.54,0.04110338]
[1762563760528,2.89,161.57,161.54,0.04110338]
[1762563761232,8.4646,161.57,161.54,0.04110338]
[1762563761436,2.89,161.57,161.54,0.04110338]
[1762563761825,2.94,161.55,161.54,0.04110338]
[1762563762028,2.94,161.55,161.44,3.12]
[1762563762525,2.94,161.52,161.41,3.12]
[1762563763035,0.04275833,161.48,161.45,3.1625019]
[1762563764232,2.94,161.56,161.47,3.12]
[1762563764940,2.94,161.59,161.47,3.12]
[1762563765230,0.04398318,161.55,161.51,0.04484718]
[1762563765437,0.04398318,161.55,161.53,8.6956]
[1762563765638,0.04398318,161.55,161.54,3.12]
[1762563766336,2.94,161.63,161.56,5.5747]
[1762563767235,2.94,161.63,161.54,8.6953]
[1762563767541,2.94,161.59,161.57,0.04466145]
[1762563767733,2.94,161.59,161.56,0.03948084]
[1762563770740,0.03935692,161.6,161.56,0.03948084]
[1762563771043,2.97935692,161.6,161.56,0.03948084]
[1762563772235,2.97935692,161.6,161.56,3.15948084]
[1762563772236,0.03935692,161.6,161.56,3.15948084]
[1762563774444,0.03935692,161.6,161.58,3.12]
[1762563775532,0.03935692,161.6,161.58,8.694]
[1762563775731,0.03935692,161.6,161.59,3.12]
[1762563775938,0.03935692,161.6,161.56,0.03948084]
[1762563775939,0.03935692,161.6,161.57,3.12]
[1762563776639,0.03935692,161.6,161.58,3.12]
[1762563777239,0.03935692,161.6,161.56,3.15948084]
[1762563778031,0.03935692,161.6,161.59,3.12]
[1762563779340,2.94,161.68,161.61,8.693]
[1762563779341,5.5712,161.67,161.61,8.693]
[1762563779642,2.94,161.68,161.61,3.12]
[1762563779843,5.5715,161.66,161.61,3.12]
[1762563780337,0.04485066,161.65,161.62,0.0446664]
[1762563780537,0.04485066,161.65,161.62,3.1646664]
[1762563780944,0.04485066,161.65,161.64,3.12]
[1762563784046,0.04485066,161.65,161.64,4.36]
[1762563784339,3.17,161.75,161.67,5.5709]
[1762563784649,8.7385,161.75,161.67,5.5708]
[1762563784838,3.17,161.75,161.65,2.88]
[1762563785243,3.17,161.71,161.68,0.04192346]
[1762563785443,3.17,161.71,161.68,0.04269207]
[1762563786148,0.04148865,161.72,161.68,2.92269207]
[1762563786545,0.04148865,161.72,161.68,8.49319207]
[1762563786738,0.04148865,161.72,161.69,2.88]
[1762563787947,0.04148865,161.72,161.69,8.4502]
[1762563790045,0.04148865,161.72,161.7,2.88]
[1762563790550,0.04148865,161.72,161.7,8.4498]
[1762563790751,0.04148865,161.72,161.71,2.88]
[1762563792450,3.17,161.82,161.77,5.5674]
[1762563792648,3.17,161.82,161.77,8.4474]
[1762563792949,8.7347,161.86,161.77,2.88]
[1762563793251,3.17,161.86,161.77,2.88]
[1762563793556,3.17,161.86,161.8,5.5664]
[1762563793756,0.04467443,161.83,161.81,2.88]
[1762563794850,0.04467443,161.83,161.8,0.04184421]
[1762563795051,3.21467443,161.83,161.8,0.04184421]
[1762563795751,0.04467443,161.83,161.8,0.04184421]
[1762563796146,0.04467443,161.83,161.8,2.92184421]
[1762563797460,0.04467443,161.83,161.81,5.5661]
[1762563797646,0.04467443,161.83,161.82,2.88]
[1762563800052,8.733,161.91,161.84,5.565]
[1762563800257,5.563,161.91,161.84,2.88]
[1762563800559,3.17,161.94,161.84,2.88]
[1762563800759,3.17,161.94,161.87,2.88]
[1762563801257,0.03903985,161.92,161.89,2.92429608]
[1762563801554,0.03972968,161.92,161.89,2.91929218]
[1762563803861,0.03972968,161.92,161.9,2.88]
[1762563804560,0.03972968,161.92,161.89,0.03929218]
[1762563804952,3.20972968,161.92,161.89,0.03929218]
[1762563805756,3.17,161.9,161.89,0.03929218]
[1762563805964,3.17,161.9,161.79,2.88]
[1762563806649,3.17,161.88,161.72,2.88]
[1762563806850,4.49416432,161.89,161.69,15.63486432]
[1762563806851,0.0414994,161.82,161.78,0.03995528]
[1762563807055,3.2114994,161.82,161.78,0.04509615]
[1762563807856,3.2114994,161.82,161.71,2.88]
[1762563807857,3.17,161.79,161.71,2.88]
[1762563808854,0.04559197,161.77,161.73,0.04165108]
[1762563809056,8.7381,161.76,161.73,0.04165108]
[1762563809652,3.17,161.75,161.73,0.04165108]
[1762563810259,8.7386,161.75,161.73,0.04165108]
[1762563810454,8.7386,161.75,161.67,2.88]
[1762563810761,8.7395,161.72,161.67,2.88]
[1762563811070,8.7395,161.72,161.6,2.88]
[1762563811364,0.0441858,161.68,161.64,0.04632394]
[1762563811564,0.0441858,161.68,161.65,2.88]
[1762563811755,3.2141858,161.68,161.64,0.04632394]
[1762563811960,0.0441858,161.68,161.64,0.04632394]
[1762563812163,0.0441858,161.68,161.64,2.92632394]
[1762563812760,2.9241858,161.68,161.64,0.04632394]
[1762563813559,0.0441858,161.68,161.64,3.15632394]
[1762563814162,11.41577832,161.89,161.67,3.11]
[1762563814163,2.88,161.76,161.67,3.11]
[1762563814569,2.88,161.8,161.67,3.11]
[1762563814771,2.88,161.8,161.71,3.11]
[1762563815159,0.04558201,161.77,161.74,0.04764095]
[1762563815356,0.04558201,161.77,161.74,3.15764095]
[1762563817070,2.92558201,161.77,161.74,0.04764095]
[1762563822773,0.04558201,161.77,161.74,3.13764095]
[1762563824675,3.09558201,161.77,161.74,0.04764095]
[1762563824881,0.04558201,161.77,161.74,0.04764095]
[1762563825176,3.09558201,161.77,161.74,0.04764095]
[1762563825879,0.04558201,161.77,161.74,3.13764095]
[1762563829686,3.09558201,161.77,161.74,0.04764095]
[1762563830680,3.09558201,161.77,161.67,3.09]
[1762563830681,3.05,161.75,161.67,3.09]
[1762563831472,5.5689,161.74,161.67,8.6609]
[1762563831675,0.04285117,161.72,161.69,0.04314675]
[1762563831968,0.04285117,161.72,161.69,3.13314675]
[1762563833080,0.04285117,161.72,161.71,3.09]
[1762563836780,3.05,161.79,161.73,3.09]
[1762563836976,3.05,161.83,161.73,3.09]
[1762563837171,5.5664,161.81,161.75,5.5682]
[1762563837372,3.05,161.83,161.73,3.09]
[1762563837578,0.0467009,161.8,161.77,3.09]
[1762563837978,0.0467009,161.8,161.79,3.09]
[1762563838176,3.05,161.86,161.79,3.09]
[1762563838983,3.05,161.86,161.75,5.74966711]
[1762563838984,3.05,161.9,161.82,3.09]
[1762563839181,0.0439004,161.88,161.85,3.09]
[1762563839384,0.03968604,161.88,161.85,3.09]
[1762563840173,0.03968604,161.88,161.85,8.6547]
[1762563840379,0.03968604,161.88,161.86,3.09]
[1762563841078,0.03968604,161.88,161.86,8.6543]
[1762563841283,0.03968604,161.88,161.84,0.04154083]
[1762563841284,0.03968604,161.88,161.85,3.09]
[1762563841677,3.08968604,161.88,161.84,0.04154083]
[1762563842690,5.5647,161.86,161.84,0.04154083]
[1762563843093,0.03968604,161.88,161.84,3.20154083]
[1762563843882,0.03968604,161.88,161.87,3.16]
[1762563845278,2.89,161.96,161.89,8.7233]
[1762563845479,2.89,162.0,161.89,3.16]
[1762563845891,5.5602,161.99,161.89,3.16]
[1762563846290,0.04759943,161.96,161.92,3.20305376]
[1762563846785,2.93759943,161.96,161.92,0.04305376]
[1762563847385,0.04759943,161.96,161.92,3.20305376]
[1762563848591,2.93759943,161.96,161.92,0.04305376]
[1762563850291,2.89,161.95,161.92,0.04305376]
[1762563850491,0.04759943,161.96,161.92,3.20305376]
[1762563850690,2.93759943,161.96,161.92,0.04305376]
[1762563851398,0.04759943,161.96,161.92,3.20305376]
[1762563853797,2.93759943,161.96,161.92,0.04305376]
[1762563854398,8.49879943,161.96,161.92,0.04305376]
[1762563855204,2.89,161.95,161.84,3.16]
[1762563855798,2.89,161.92,161.84,3.16]
[1762563856407,2.93710151,161.9,161.86,0.0458452]
[1762563856600,2.89,161.9,161.81,3.16]
[1762563856801,0.0427296,161.87,161.84,3.19916]
[1762563857000,0.04518203,161.87,161.84,3.19963622]
[1762563857895,2.93518203,161.87,161.84,0.03963622]
[1762563858097,2.89,161.85,161.84,0.03963622]
[1762563858306,2.89,161.85,161.75,3.16]
[1762563858604,8.455,161.85,161.75,3.16]
[1762563858806,2.89,161.85,161.75,3.16]
[1762563859202,2.89,161.85,161.68,24.16996167]
[1762563859203,2.89,161.85,161.77,3.16]
[1762563859412,0.04196471,161.83,161.79,0.04125649]
[1762563859911,2.93196471,161.83,161.79,0.04125649]
[1762563864105,4.17196471,161.83,161.79,0.04125649]
[1762563864307,2.89,161.82,161.69,3.16]
[1762563864705,8.4548,161.86,161.74,3.16]
[1762563865099,8.4548,161.86,161.78,5.5671]
[1762563865299,0.03914017,161.84,161.8,0.04084191]
[1762563865500,2.92914017,161.84,161.8,0.04084191]
[1762563867002,0.03914017,161.84,161.8,3.20084191]
[1762563867207,2.89,161.92,161.83,3.16]
[1762563868308,0.04665762,161.89,161.87,3.16]
[1762563868506,8.4512,161.96,161.87,3.16]
[1762563868808,0.04196104,161.9,161.88,8.7236]
[1762563869110,0.0422245,161.91,161.88,8.7236]
[1762563869306,0.0422245,161.91,161.88,3.20447128]
[1762563871012,2.9322245,161.91,161.88,0.04447128]
[1762563871415,2.89,161.9,161.88,0.04447128]
[1762563871809,8.4533,161.9,161.88,0.04447128]
[1762563872007,2.89,161.89,161.88,0.04447128]
[1762563872416,4.13,161.89,161.81,5.566]
[1762563872611,2.89,161.89,161.81,5.566]
[1762563872812,2.89,161.89,161.8,3.16]
[1762563873410,0.03974432,161.86,161.83,0.04327852]
[1762563873916,0.03974432,161.86,161.83,2.96327852]
[1762563874516,0.03974432,161.86,161.85,2.92]
[1762563876618,5.562,161.94,161.87,5.564]
[1762563877011,2.9,161.97,161.86,2.92]
[1762563877416,0.04210429,161.93,161.9,0.04112099]
[1762563877619,0.04210429,161.93,161.9,2.96112099]
[1762563879408,0.04210429,161.93,161.9,0.04112099]
[1762563879712,2.94210429,161.93,161.9,0.04112099]